[Event "*** SCC Grand Prix: Titled Tuesday Blitz"]
[Site "Chess.com"]
[Date "2020.09.08"]
[Round "6"]
[White "KyrgyzFighter"]
[Black "el-roedor"]
[Result "0-1"]
[WhiteElo "2348"]
[BlackElo "2553"]
[TimeControl "180+1"]
[EndTime "11:09:17 PDT"]
[Termination "el-roedor won by checkmate"]

1. c4 {[%clk 0:03:00.8]} 1... c5 {[%clk 0:02:57.6]} 2. Nf3 {[%clk 0:03:00.6]}
2... g6 {[%clk 0:02:56.7]} 3. d4 {[%clk 0:03:00.7]} 3... cxd4 {[%clk 0:02:56]}
4. Nxd4 {[%clk 0:03:01.6]} 4... Nc6 {[%clk 0:02:55]} 5. g3 {[%clk 0:03:01.9]}
5... Bg7 {[%clk 0:02:54]} 6. Nc2 {[%clk 0:03:02.5]} 6... d6 {[%clk 0:02:53.3]}
7. Bg2 {[%clk 0:03:02]} 7... h5 {[%clk 0:02:53.4]} 8. h3 {[%clk 0:03:00.1]} 8...
Be6 {[%clk 0:02:52.4]} 9. Ne3 {[%clk 0:02:59.9]} 9... Qd7 {[%clk 0:02:49]} 10.
Nd2 {[%clk 0:02:57.9]} 10... Rc8 {[%clk 0:02:44.8]} 11. Rb1 {[%clk 0:02:57.3]}
11... Nf6 {[%clk 0:02:35]} 12. b3 {[%clk 0:02:49.4]} 12... O-O {[%clk
0:02:31.9]} 13. Bb2 {[%clk 0:02:49]} 13... a6 {[%clk 0:02:27]} 14. h4 {[%clk
0:02:42.8]} 14... b5 {[%clk 0:02:24.7]} 15. cxb5 {[%clk 0:02:42.2]} 15... axb5
{[%clk 0:02:25.1]} 16. O-O {[%clk 0:02:42.7]} 16... Bh3 {[%clk 0:02:14.9]} 17.
Rc1 {[%clk 0:02:30.2]} 17... Bxg2 {[%clk 0:02:14.2]} 18. Kxg2 {[%clk 0:02:25.3]}
18... Ng4 {[%clk 0:02:02.6]} 19. Nxg4 {[%clk 0:02:00.8]} 19... Bxb2 {[%clk
0:02:01.7]} 20. Rc2 {[%clk 0:02:01.4]} 20... Bg7 {[%clk 0:01:49]} 21. Ne3 {[%clk
0:01:59.8]} 21... Nd4 {[%clk 0:01:45.5]} 22. Rxc8 {[%clk 0:01:58.4]} 22... Rxc8
{[%clk 0:01:46.2]} 23. Nf3 {[%clk 0:01:51.6]} 23... Qb7 {[%clk 0:01:42.8]} 24.
Kh2 {[%clk 0:01:49.9]} 24... Nxf3+ {[%clk 0:01:38]} 25. exf3 {[%clk 0:01:50.8]}
25... Rc5 {[%clk 0:01:22.2]} 26. Kg2 {[%clk 0:01:32.9]} 26... Qc6 {[%clk
0:01:13.1]} 27. Qd3 {[%clk 0:01:23.3]} 27... e6 {[%clk 0:00:48]} 28. Rd1 {[%clk
0:00:33.4]} 28... d5 {[%clk 0:00:47.8]} 29. Rd2 {[%clk 0:00:27.1]} 29... Rc3
{[%clk 0:00:41.9]} 30. Qe2 {[%clk 0:00:20.1]} 30... d4 {[%clk 0:00:25.3]} 31.
Nd1 {[%clk 0:00:20.5]} 31... Rc1 {[%clk 0:00:23.2]} 32. Nb2 {[%clk 0:00:20.2]}
32... e5 {[%clk 0:00:20.1]} 33. Nd3 {[%clk 0:00:20.1]} 33... Rc3 {[%clk
0:00:18.9]} 34. Kh2 {[%clk 0:00:18.2]} 34... f6 {[%clk 0:00:16.1]} 35. Qe4
{[%clk 0:00:16.2]} 35... Qxe4 {[%clk 0:00:15.5]} 36. fxe4 {[%clk 0:00:17.1]}
36... Bh6 {[%clk 0:00:15.9]} 37. Rd1 {[%clk 0:00:16.5]} 37... Rc2 {[%clk
0:00:16.2]} 38. Kg2 {[%clk 0:00:16.6]} 38... Rxa2 {[%clk 0:00:14.7]} 39. Kf3
{[%clk 0:00:09.7]} 39... Rc2 {[%clk 0:00:12.3]} 40. Ra1 {[%clk 0:00:05.1]} 40...
Rc3 {[%clk 0:00:11.7]} 41. Ke2 {[%clk 0:00:06]} 41... Rxb3 {[%clk 0:00:11.8]}
42. Ra8+ {[%clk 0:00:06.8]} 42... Kf7 {[%clk 0:00:11.9]} 43. Ra7+ {[%clk
0:00:06.8]} 43... Ke8 {[%clk 0:00:11.7]} 44. Ra8+ {[%clk 0:00:06.5]} 44... Kd7
{[%clk 0:00:11.6]} 45. Rg8 {[%clk 0:00:07.1]} 45... Rc3 {[%clk 0:00:07.5]} 46.
Rxg6 {[%clk 0:00:06.9]} 46... Bf8 {[%clk 0:00:07.7]} 47. Rxf6 {[%clk 0:00:06.9]}
47... Bd6 {[%clk 0:00:08.2]} 48. Rf7+ {[%clk 0:00:06.6]} 48... Kc6 {[%clk
0:00:08]} 49. Rf6 {[%clk 0:00:07]} 49... Kc7 {[%clk 0:00:07.9]} 50. Rf7+ {[%clk
0:00:07.2]} 50... Kc6 {[%clk 0:00:08.1]} 51. Rf6 {[%clk 0:00:07.7]} 51... Kd7
{[%clk 0:00:08.4]} 52. Rf7+ {[%clk 0:00:07.9]} 52... Kc8 {[%clk 0:00:08.2]} 53.
Rh7 {[%clk 0:00:08.5]} 53... b4 {[%clk 0:00:08.1]} 54. Rh6 {[%clk 0:00:06.3]}
54... Kc7 {[%clk 0:00:07.9]} 55. Rh7+ {[%clk 0:00:06.8]} 55... Kc6 {[%clk
0:00:08.3]} 56. Rh6 {[%clk 0:00:07.2]} 56... Kd7 {[%clk 0:00:08.5]} 57. Rh7+
{[%clk 0:00:07.4]} 57... Kc8 {[%clk 0:00:08.7]} 58. Rh6 {[%clk 0:00:07.9]} 58...
Kc7 {[%clk 0:00:08.3]} 59. Rh7+ {[%clk 0:00:07.7]} 59... Kb6 {[%clk 0:00:08.6]}
60. Rh6 {[%clk 0:00:08.2]} 60... Rc6 {[%clk 0:00:08.9]} 61. Kd2 {[%clk
0:00:04.6]} 61... b3 {[%clk 0:00:08.9]} 62. f4 {[%clk 0:00:04.3]} 62... Bb4+
{[%clk 0:00:07.5]} 63. Ke2 {[%clk 0:00:03.6]} 63... Rxh6 {[%clk 0:00:07.9]} 64.
fxe5 {[%clk 0:00:04.1]} 64... Bc3 {[%clk 0:00:07.4]} 65. Kd1 {[%clk 0:00:03.2]}
65... Kb5 {[%clk 0:00:05.8]} 66. Nc1 {[%clk 0:00:02.7]} 66... Kc4 {[%clk
0:00:06]} 67. Ne2 {[%clk 0:00:02.3]} 67... Re6 {[%clk 0:00:05.5]} 68. Nxd4
{[%clk 0:00:01.3]} 68... Kxd4 {[%clk 0:00:05.3]} 69. Kc1 {[%clk 0:00:02.2]}
69... Rxe5 {[%clk 0:00:05.6]} 70. Kb1 {[%clk 0:00:03.1]} 70... Rxe4 {[%clk
0:00:06.2]} 71. Kc1 {[%clk 0:00:04]} 71... Rg4 {[%clk 0:00:06.5]} 72. Kd1 {[%clk
0:00:03.8]} 72... Re4 {[%clk 0:00:06.2]} 73. Kc1 {[%clk 0:00:03.9]} 73... Re1#
{[%clk 0:00:06.3]} 0-1

[Event "*** SCC Grand Prix: Titled Tuesday Blitz"]
[Site "Chess.com"]
[Date "2020.09.08"]
[Round "6"]
[White "ChadaevNikolay"]
[Black "GregShahade"]
[Result "1/2-1/2"]
[WhiteElo "2812"]
[BlackElo "2607"]
[TimeControl "180+1"]
[EndTime "11:09:27 PDT"]
[Termination "Game drawn - insufficient material"]

1. d4 {[%clk 0:03:00.9]} 1... Nf6 {[%clk 0:02:59.7]} 2. c4 {[%clk 0:03:00.4]}
2... g6 {[%clk 0:02:59.9]} 3. Nc3 {[%clk 0:02:59.2]} 3... d5 {[%clk 0:03:00.2]}
4. Bf4 {[%clk 0:02:56.9]} 4... Bg7 {[%clk 0:03:00.1]} 5. e3 {[%clk 0:02:57.1]}
5... c5 {[%clk 0:02:59.8]} 6. dxc5 {[%clk 0:02:55.4]} 6... Qa5 {[%clk
0:02:59.5]} 7. Rc1 {[%clk 0:02:53.6]} 7... dxc4 {[%clk 0:02:58.8]} 8. Bxc4
{[%clk 0:02:52.9]} 8... O-O {[%clk 0:02:59.3]} 9. Ne2 {[%clk 0:02:49.7]} 9...
Qxc5 {[%clk 0:02:56.5]} 10. Bb3 {[%clk 0:02:45.9]} 10... Nc6 {[%clk 0:02:39.3]}
11. O-O {[%clk 0:02:39.8]} 11... Qa5 {[%clk 0:02:38.1]} 12. e4 {[%clk
0:02:31.9]} 12... Rd8 {[%clk 0:02:30.8]} 13. Qe1 {[%clk 0:02:30.3]} 13... Nh5
{[%clk 0:02:10.8]} 14. Be3 {[%clk 0:02:23.5]} 14... Bd7 {[%clk 0:01:58.2]} 15.
Rd1 {[%clk 0:02:14.4]} 15... Be8 {[%clk 0:01:53.9]} 16. f3 {[%clk 0:02:06.3]}
16... Rxd1 {[%clk 0:01:49.7]} 17. Qxd1 {[%clk 0:02:07.2]} 17... Rd8 {[%clk
0:01:49.9]} 18. Qe1 {[%clk 0:02:00.9]} 18... Nf6 {[%clk 0:01:47.4]} 19. Qf2
{[%clk 0:01:52.2]} 19... b6 {[%clk 0:01:31.9]} 20. Nf4 {[%clk 0:01:42.5]} 20...
e6 {[%clk 0:01:27.4]} 21. Rd1 {[%clk 0:01:29.3]} 21... Rxd1+ {[%clk 0:01:26.1]}
22. Nxd1 {[%clk 0:01:29]} 22... Ne5 {[%clk 0:01:21.2]} 23. Qd2 {[%clk
0:01:12.3]} 23... Qxd2 {[%clk 0:01:10.3]} 24. Bxd2 {[%clk 0:01:13.2]} 24... Bh6
{[%clk 0:01:05.6]} 25. Be3 {[%clk 0:01:04.1]} 25... Bf8 {[%clk 0:00:57.3]} 26.
Kf2 {[%clk 0:00:54.2]} 26... g5 {[%clk 0:00:57.5]} 27. Ne2 {[%clk 0:00:53.4]}
27... Nd3+ {[%clk 0:00:57.4]} 28. Kf1 {[%clk 0:00:52.7]} 28... h6 {[%clk
0:00:57.5]} 29. Nc1 {[%clk 0:00:49]} 29... Bb5 {[%clk 0:00:52]} 30. Nxd3 {[%clk
0:00:48.4]} 30... Bxd3+ {[%clk 0:00:52.9]} 31. Ke1 {[%clk 0:00:48.9]} 31... Bb4+
{[%clk 0:00:51.6]} 32. Bd2 {[%clk 0:00:49.1]} 32... Bc5 {[%clk 0:00:51.6]} 33.
Nf2 {[%clk 0:00:44.7]} 33... Bb5 {[%clk 0:00:46.9]} 34. Bc3 {[%clk 0:00:44.7]}
34... Nd7 {[%clk 0:00:46.7]} 35. a4 {[%clk 0:00:41.6]} 35... Ba6 {[%clk
0:00:44.1]} 36. Bc2 {[%clk 0:00:39.8]} 36... Bd6 {[%clk 0:00:42.6]} 37. g3
{[%clk 0:00:37.8]} 37... Ne5 {[%clk 0:00:39.9]} 38. Bd1 {[%clk 0:00:37.8]} 38...
Nd3+ {[%clk 0:00:38]} 39. Nxd3 {[%clk 0:00:37.7]} 39... Bxd3 {[%clk 0:00:38.9]}
40. Kd2 {[%clk 0:00:35.5]} 40... Ba6 {[%clk 0:00:38.9]} 41. b4 {[%clk
0:00:35.2]} 41... Bb7 {[%clk 0:00:37.9]} 42. b5 {[%clk 0:00:34.6]} 42... Bc5
{[%clk 0:00:35.1]} 43. Be5 {[%clk 0:00:29.1]} 43... a6 {[%clk 0:00:31.8]} 44.
bxa6 {[%clk 0:00:26.6]} 44... Bxa6 {[%clk 0:00:32.1]} 45. Be2 {[%clk 0:00:27.1]}
45... Bb7 {[%clk 0:00:30.9]} 46. Bb5 {[%clk 0:00:26.3]} 46... g4 {[%clk
0:00:28.7]} 47. fxg4 {[%clk 0:00:23.3]} 47... Bxe4 {[%clk 0:00:29]} 48. h4
{[%clk 0:00:22.8]} 48... Bf3 {[%clk 0:00:28.1]} 49. Be2 {[%clk 0:00:20.5]} 49...
Bc6 {[%clk 0:00:25.4]} 50. Bb5 {[%clk 0:00:19.9]} 50... Bf3 {[%clk 0:00:25.8]}
51. Be2 {[%clk 0:00:20]} 51... Bc6 {[%clk 0:00:25.9]} 52. Bd1 {[%clk 0:00:20.6]}
52... Bf2 {[%clk 0:00:15.7]} 53. g5 {[%clk 0:00:19.7]} 53... hxg5 {[%clk
0:00:15.4]} 54. hxg5 {[%clk 0:00:20.6]} 54... Bc5 {[%clk 0:00:15.6]} 55. Bc2
{[%clk 0:00:20.6]} 55... Be7 {[%clk 0:00:11.4]} 56. Bf6 {[%clk 0:00:19.7]} 56...
Bc5 {[%clk 0:00:08.6]} 57. Kc3 {[%clk 0:00:19.1]} 57... Bf2 {[%clk 0:00:08.2]}
58. Be5 {[%clk 0:00:19]} 58... Kf8 {[%clk 0:00:08.8]} 59. Bd4 {[%clk 0:00:18.6]}
59... Bxd4+ {[%clk 0:00:07.4]} 60. Kxd4 {[%clk 0:00:18.3]} 60... Ke7 {[%clk
0:00:08]} 61. Ke5 {[%clk 0:00:18.5]} 61... Bd7 {[%clk 0:00:06.4]} 62. Bb3 {[%clk
0:00:18.4]} 62... Bc6 {[%clk 0:00:06.4]} 63. Kd4 {[%clk 0:00:18.6]} 63... Kd6
{[%clk 0:00:06.7]} 64. Bc2 {[%clk 0:00:18.3]} 64... Bd7 {[%clk 0:00:06.3]} 65.
Kc4 {[%clk 0:00:18.3]} 65... Bc6 {[%clk 0:00:06.4]} 66. Kb4 {[%clk 0:00:18.3]}
66... Ke5 {[%clk 0:00:06.8]} 67. Bd3 {[%clk 0:00:18]} 67... Kd6 {[%clk
0:00:05.6]} 68. Bh7 {[%clk 0:00:17.9]} 68... Ke7 {[%clk 0:00:05.3]} 69. a5
{[%clk 0:00:18]} 69... bxa5+ {[%clk 0:00:05.2]} 70. Kxa5 {[%clk 0:00:18.9]}
70... Bd5 {[%clk 0:00:05.6]} 71. Kb6 {[%clk 0:00:19.3]} 71... e5 {[%clk
0:00:06]} 72. Kc5 {[%clk 0:00:19.4]} 72... Be6 {[%clk 0:00:06.4]} 73. Be4 {[%clk
0:00:19.5]} 73... f5 {[%clk 0:00:06.1]} 74. gxf6+ {[%clk 0:00:19.4]} 74... Kxf6
{[%clk 0:00:06.5]} 75. Kd6 {[%clk 0:00:19.9]} 75... Bg4 {[%clk 0:00:06.3]} 76.
Kd5 {[%clk 0:00:19.4]} 76... Be6+ {[%clk 0:00:06.1]} 77. Kc5 {[%clk 0:00:19.6]}
77... Bg4 {[%clk 0:00:07]} 78. Kc4 {[%clk 0:00:19.9]} 78... Be6+ {[%clk
0:00:07.6]} 79. Kd3 {[%clk 0:00:20.2]} 79... Bg4 {[%clk 0:00:08.3]} 80. Ke3
{[%clk 0:00:20.8]} 80... Be6 {[%clk 0:00:08.9]} 81. Bf3 {[%clk 0:00:21.4]} 81...
Bf5 {[%clk 0:00:09.3]} 82. g4 {[%clk 0:00:21.4]} 82... Bxg4 {[%clk 0:00:09.8]}
83. Bxg4 {[%clk 0:00:21.7]} 83... e4 {[%clk 0:00:10.5]} 84. Kxe4 {[%clk
0:00:21.7]} 1/2-1/2

[Event "*** SCC Grand Prix: Titled Tuesday Blitz"]
[Site "Chess.com"]
[Date "2020.09.08"]
[Round "6"]
[White "Tenamu"]
[Black "keepitcool9499"]
[Result "0-1"]
[WhiteElo "2362"]
[BlackElo "2652"]
[TimeControl "180+1"]
[EndTime "11:09:27 PDT"]
[Termination "keepitcool9499 won by resignation"]

1. d4 {[%clk 0:03:00.9]} 1... e6 {[%clk 0:03:00.9]} 2. e4 {[%clk 0:02:59.1]}
2... d5 {[%clk 0:03:01.4]} 3. Nd2 {[%clk 0:02:56]} 3... c5 {[%clk 0:03:00.8]} 4.
exd5 {[%clk 0:02:55.6]} 4... Qxd5 {[%clk 0:03:01.7]} 5. Ngf3 {[%clk 0:02:55.3]}
5... cxd4 {[%clk 0:03:02.2]} 6. Bc4 {[%clk 0:02:55.8]} 6... Qd6 {[%clk
0:03:02.9]} 7. O-O {[%clk 0:02:55.7]} 7... Nc6 {[%clk 0:03:03.6]} 8. Qe2 {[%clk
0:02:54.3]} 8... Nf6 {[%clk 0:03:03.6]} 9. Rd1 {[%clk 0:02:53.9]} 9... Be7
{[%clk 0:02:35]} 10. Nb3 {[%clk 0:02:42.9]} 10... e5 {[%clk 0:02:01.1]} 11. c3
{[%clk 0:02:41.2]} 11... O-O {[%clk 0:01:57.8]} 12. cxd4 {[%clk 0:02:37.4]}
12... e4 {[%clk 0:01:55.3]} 13. Ne1 {[%clk 0:01:41.1]} 13... Bg4 {[%clk
0:01:35.6]} 14. Qc2 {[%clk 0:01:34.4]} 14... Bxd1 {[%clk 0:01:19.2]} 15. Qxd1
{[%clk 0:01:31.5]} 15... Rad8 {[%clk 0:01:19.6]} 16. Nc2 {[%clk 0:01:22.8]}
16... a6 {[%clk 0:01:15.2]} 17. a4 {[%clk 0:01:19.6]} 17... Nb4 {[%clk
0:01:13.4]} 18. Ne3 {[%clk 0:01:10.9]} 18... Nfd5 {[%clk 0:01:11.7]} 19. Nxd5
{[%clk 0:01:08.2]} 19... Nxd5 {[%clk 0:01:12.6]} 20. Nc5 {[%clk 0:01:08.4]}
20... b5 {[%clk 0:01:09.9]} 21. axb5 {[%clk 0:00:57.7]} 21... axb5 {[%clk
0:01:10.8]} 22. Nxe4 {[%clk 0:00:55.9]} 22... Qd7 {[%clk 0:01:06.6]} 23. Bb3
{[%clk 0:00:50.1]} 23... Nf6 {[%clk 0:01:05]} 24. Nxf6+ {[%clk 0:00:43.6]} 24...
Bxf6 {[%clk 0:01:05.9]} 25. d5 {[%clk 0:00:44.5]} 25... Qf5 {[%clk 0:01:03.1]}
26. Ra5 {[%clk 0:00:38.3]} 26... Rfe8 {[%clk 0:00:52.4]} 27. Rxb5 {[%clk
0:00:33.9]} 27... Qg4 {[%clk 0:00:49.9]} 28. Qf1 {[%clk 0:00:27.1]} 28... Qe2
{[%clk 0:00:41.5]} 29. Qxe2 {[%clk 0:00:20.1]} 29... Rxe2 {[%clk 0:00:42.4]} 30.
Kf1 {[%clk 0:00:20.9]} 30... Re7 {[%clk 0:00:35.2]} 31. Bc4 {[%clk 0:00:17.8]}
31... Rde8 {[%clk 0:00:35]} 32. Be3 {[%clk 0:00:17.9]} 32... Rd7 {[%clk
0:00:33.6]} 33. b3 {[%clk 0:00:17.2]} 33... Red8 {[%clk 0:00:33.3]} 34. Ke2
{[%clk 0:00:15.5]} 34... g6 {[%clk 0:00:33]} 35. Kd3 {[%clk 0:00:15.7]} 35...
Kg7 {[%clk 0:00:33.2]} 36. Bf4 {[%clk 0:00:15.1]} 36... Be7 {[%clk 0:00:32.9]}
37. Rb6 {[%clk 0:00:14.4]} 37... Bd6 {[%clk 0:00:32.8]} 38. Be3 {[%clk
0:00:14.3]} 38... Kf8 {[%clk 0:00:31.4]} 39. Bh6+ {[%clk 0:00:13.4]} 39... Ke7
{[%clk 0:00:31.2]} 40. Bg5+ {[%clk 0:00:13.6]} 40... f6 {[%clk 0:00:31.7]} 41.
Be3 {[%clk 0:00:14]} 41... Be5 {[%clk 0:00:31.8]} 42. Bc5+ {[%clk 0:00:13.6]}
42... Bd6 {[%clk 0:00:31.4]} 43. Be3 {[%clk 0:00:13.7]} 43... Bc7 {[%clk
0:00:29.1]} 44. Re6+ {[%clk 0:00:13.4]} 44... Kf7 {[%clk 0:00:29.3]} 45. d6
{[%clk 0:00:11.8]} 45... Kg7 {[%clk 0:00:18.8]} 46. Bd4 {[%clk 0:00:04.5]} 46...
Rxd6 {[%clk 0:00:17.6]} 47. Re7+ {[%clk 0:00:04.8]} 47... Kh8 {[%clk 0:00:15.2]}
48. Rxc7 {[%clk 0:00:05.7]} 48... Rxd4+ {[%clk 0:00:15.2]} 49. Kc3 {[%clk
0:00:06.6]} 49... R4d7 {[%clk 0:00:15.3]} 50. Rc5 {[%clk 0:00:06.2]} 50... Kg7
{[%clk 0:00:15.6]} 51. b4 {[%clk 0:00:07.1]} 51... Rd1 {[%clk 0:00:15.5]} 52. b5
{[%clk 0:00:08]} 52... Rc1+ {[%clk 0:00:16.1]} 53. Kb4 {[%clk 0:00:08.4]} 53...
Rb8 {[%clk 0:00:16.1]} 54. Rc6 {[%clk 0:00:07.7]} 54... Rb1+ {[%clk 0:00:15.2]}
55. Kc5 {[%clk 0:00:07.9]} 55... Rc1 {[%clk 0:00:15]} 56. b6 {[%clk 0:00:08.8]}
56... Re8 {[%clk 0:00:13.7]} 57. b7 {[%clk 0:00:08.6]} 57... Re5+ {[%clk
0:00:14.2]} 58. Kb6 {[%clk 0:00:08.1]} 58... Rb1+ {[%clk 0:00:14.1]} 59. Kc7
{[%clk 0:00:08.3]} 59... Re7+ {[%clk 0:00:14.2]} 60. Kd6 {[%clk 0:00:07.1]}
60... Rexb7 {[%clk 0:00:14.7]} 61. Rc8 {[%clk 0:00:07.3]} 61... Rd1+ {[%clk
0:00:13.6]} 62. Kc5 {[%clk 0:00:07.3]} 62... Re7 {[%clk 0:00:13]} 63. f4 {[%clk
0:00:07.2]} 63... Rc1 {[%clk 0:00:13.4]} 64. g3 {[%clk 0:00:07.1]} 64... Ra7
{[%clk 0:00:13.1]} 65. Kd4 {[%clk 0:00:04.9]} 65... Ra4 {[%clk 0:00:12.3]} 66.
h4 {[%clk 0:00:04.3]} 66... Kh6 {[%clk 0:00:12.3]} 67. g4 {[%clk 0:00:04.2]}
67... f5 {[%clk 0:00:12.4]} 68. gxf5 {[%clk 0:00:03]} 68... gxf5 {[%clk
0:00:13.3]} 69. Rc5 {[%clk 0:00:03.5]} 69... Kh5 {[%clk 0:00:11.1]} 70. Rxf5+
{[%clk 0:00:03.4]} 70... Kxh4 {[%clk 0:00:11.2]} 71. Rc5 {[%clk 0:00:04.3]}
71... Kg4 {[%clk 0:00:10.8]} 72. f5 {[%clk 0:00:05]} 72... h5 {[%clk 0:00:10.9]}
73. f6 {[%clk 0:00:04.3]} 73... Rf1 {[%clk 0:00:11.1]} 74. f7 {[%clk 0:00:04.5]}
74... Rxf7 {[%clk 0:00:11]} 75. Kc3 {[%clk 0:00:02]} 75... Rf3+ {[%clk
0:00:10.6]} 76. Kd4 {[%clk 0:00:02.6]} 76... Rf4+ {[%clk 0:00:10.6]} 77. Kd5
{[%clk 0:00:02.7]} 77... Rfxc4 {[%clk 0:00:11.1]} 78. Rxc4+ {[%clk 0:00:03.6]}
78... Rxc4 {[%clk 0:00:11.4]} 79. Kxc4 {[%clk 0:00:04.5]} 79... Kg3 {[%clk
0:00:11.9]} 80. Kd3 {[%clk 0:00:05.4]} 80... Kg2 {[%clk 0:00:12.3]} 81. Ke2
{[%clk 0:00:06.3]} 81... h4 {[%clk 0:00:13.2]} 82. Ke3 {[%clk 0:00:06.6]} 82...
h3 {[%clk 0:00:14.1]} 83. Kf4 {[%clk 0:00:07.5]} 83... h2 {[%clk 0:00:15]} 0-1

[Event "*** SCC Grand Prix: Titled Tuesday Blitz"]
[Site "Chess.com"]
[Date "2020.09.08"]
[Round "6"]
[White "Rodchenkov_Vitalij"]
[Black "crescentmoon2411"]
[Result "0-1"]
[WhiteElo "2575"]
[BlackElo "2770"]
[TimeControl "180+1"]
[EndTime "11:09:31 PDT"]
[Termination "crescentmoon2411 won by resignation"]

1. d4 {[%clk 0:03:00.9]} 1... Nf6 {[%clk 0:02:59.7]} 2. Nf3 {[%clk 0:03:01.3]}
2... c5 {[%clk 0:02:59.9]} 3. d5 {[%clk 0:03:00.8]} 3... e6 {[%clk 0:02:59.9]}
4. Nc3 {[%clk 0:03:00.9]} 4... exd5 {[%clk 0:02:59.5]} 5. Nxd5 {[%clk
0:03:00.3]} 5... Nxd5 {[%clk 0:02:59.9]} 6. Qxd5 {[%clk 0:02:59.7]} 6... Nc6
{[%clk 0:02:32.1]} 7. e4 {[%clk 0:02:58.9]} 7... Be7 {[%clk 0:02:16.2]} 8. Bc4
{[%clk 0:02:55.6]} 8... O-O {[%clk 0:02:14.8]} 9. c3 {[%clk 0:02:52.7]} 9... d6
{[%clk 0:02:14.1]} 10. O-O {[%clk 0:02:52.3]} 10... Be6 {[%clk 0:02:13.7]} 11.
Qd3 {[%clk 0:02:51.7]} 11... Qd7 {[%clk 0:02:08.8]} 12. Bf4 {[%clk 0:02:45.8]}
12... Bxc4 {[%clk 0:02:02.5]} 13. Qxc4 {[%clk 0:02:45.1]} 13... Qe6 {[%clk
0:02:02]} 14. Qd3 {[%clk 0:02:27.8]} 14... Rad8 {[%clk 0:02:00.4]} 15. Rfd1
{[%clk 0:02:18.9]} 15... f5 {[%clk 0:01:51.4]} 16. Qd5 {[%clk 0:02:12]} 16...
Qxd5 {[%clk 0:00:53.7]} 17. exd5 {[%clk 0:02:11]} 17... Nb8 {[%clk 0:00:46.1]}
18. Re1 {[%clk 0:02:06.4]} 18... Rfe8 {[%clk 0:00:43.9]} 19. Re6 {[%clk
0:02:01.2]} 19... Bf8 {[%clk 0:00:39.3]} 20. Rae1 {[%clk 0:01:58.6]} 20... Rxe6
{[%clk 0:00:34.2]} 21. Rxe6 {[%clk 0:01:57.6]} 21... Na6 {[%clk 0:00:27.7]} 22.
Bg5 {[%clk 0:01:40]} 22... Rd7 {[%clk 0:00:22.3]} 23. c4 {[%clk 0:01:34.7]}
23... Kf7 {[%clk 0:00:20.2]} 24. Bd2 {[%clk 0:01:29.9]} 24... h6 {[%clk
0:00:15.7]} 25. Nh4 {[%clk 0:01:26.1]} 25... Nc7 {[%clk 0:00:15.1]} 26. Re2
{[%clk 0:01:20.1]} 26... g6 {[%clk 0:00:14.8]} 27. Kf1 {[%clk 0:01:17.2]} 27...
Re7 {[%clk 0:00:13.9]} 28. h3 {[%clk 0:01:07.8]} 28... b5 {[%clk 0:00:12.3]} 29.
b3 {[%clk 0:01:04.5]} 29... bxc4 {[%clk 0:00:10.8]} 30. bxc4 {[%clk 0:01:04.4]}
30... Ne8 {[%clk 0:00:06.2]} 31. Rxe7+ {[%clk 0:00:50.4]} 31... Bxe7 {[%clk
0:00:06]} 32. Nf3 {[%clk 0:00:50.6]} 32... g5 {[%clk 0:00:06.3]} 33. Ne1 {[%clk
0:00:48.8]} 33... Nf6 {[%clk 0:00:06.5]} 34. f3 {[%clk 0:00:45.6]} 34... Nd7
{[%clk 0:00:06.6]} 35. Nc2 {[%clk 0:00:38.4]} 35... Nb6 {[%clk 0:00:06.9]} 36.
Na3 {[%clk 0:00:37]} 36... a6 {[%clk 0:00:07.2]} 37. Ba5 {[%clk 0:00:36.1]}
37... Na4 {[%clk 0:00:07.5]} 38. Ke2 {[%clk 0:00:34.2]} 38... Bf6 {[%clk
0:00:08]} 39. Bc7 {[%clk 0:00:25.4]} 39... Be5 {[%clk 0:00:07.8]} 40. Kd3 {[%clk
0:00:20.4]} 40... Ke7 {[%clk 0:00:07.1]} 41. Kc2 {[%clk 0:00:20.4]} 41... Kd7
{[%clk 0:00:06.5]} 42. Ba5 {[%clk 0:00:21]} 42... h5 {[%clk 0:00:04.5]} 43. Nb1
{[%clk 0:00:19]} 43... Nb2 {[%clk 0:00:04.1]} 44. Nd2 {[%clk 0:00:17.7]} 44...
g4 {[%clk 0:00:03.2]} 45. hxg4 {[%clk 0:00:17.3]} 45... hxg4 {[%clk 0:00:04.1]}
46. fxg4 {[%clk 0:00:17.7]} 46... fxg4 {[%clk 0:00:05]} 47. Bc3 {[%clk
0:00:16.5]} 47... Bxc3 {[%clk 0:00:05]} 48. Kxc3 {[%clk 0:00:16.8]} 48... Nd1+
{[%clk 0:00:05.3]} 49. Kd3 {[%clk 0:00:16.5]} 49... Ke7 {[%clk 0:00:04.8]} 50.
Ke4 {[%clk 0:00:16.8]} 50... Nc3+ {[%clk 0:00:04.6]} 51. Kf4 {[%clk 0:00:15.4]}
51... Nxa2 {[%clk 0:00:05]} 52. Kxg4 {[%clk 0:00:16.1]} 52... a5 {[%clk
0:00:05.6]} 53. Kf4 {[%clk 0:00:16]} 53... a4 {[%clk 0:00:06.1]} 54. Ke4 {[%clk
0:00:15.6]} 54... a3 {[%clk 0:00:05]} 55. Kd3 {[%clk 0:00:15.6]} 55... Nb4+
{[%clk 0:00:03.8]} 56. Kc3 {[%clk 0:00:15.9]} 56... Kf6 {[%clk 0:00:02.4]} 57.
Nb3 {[%clk 0:00:15.4]} 57... Ke5 {[%clk 0:00:02.4]} 58. Na1 {[%clk 0:00:15.4]}
58... Kf4 {[%clk 0:00:02.2]} 59. Nb3 {[%clk 0:00:13.4]} 59... a2 {[%clk
0:00:02.2]} 60. Kb2 {[%clk 0:00:13.1]} 60... Kg3 {[%clk 0:00:02.6]} 61. Nc1
{[%clk 0:00:13.2]} 61... Kxg2 {[%clk 0:00:02.8]} 62. Nb3 {[%clk 0:00:10.7]}
62... Kf3 {[%clk 0:00:02.7]} 63. Na5 {[%clk 0:00:11.3]} 63... Ke4 {[%clk
0:00:02.8]} 64. Nb7 {[%clk 0:00:12]} 64... Ke5 {[%clk 0:00:03.3]} 65. Nd8 {[%clk
0:00:12.1]} 65... Kd4 {[%clk 0:00:03.3]} 66. Nf7 {[%clk 0:00:12.1]} 66... Kxc4
{[%clk 0:00:03.6]} 67. Nxd6+ {[%clk 0:00:12.7]} 67... Kxd5 {[%clk 0:00:04.2]}
68. Nb7 {[%clk 0:00:13]} 68... c4 {[%clk 0:00:04.1]} 69. Na5 {[%clk 0:00:10.2]}
69... c3+ {[%clk 0:00:04.6]} 70. Ka1 {[%clk 0:00:10.6]} 70... c2 {[%clk
0:00:05]} 71. Nb3 {[%clk 0:00:11]} 71... Kc4 {[%clk 0:00:05.3]} 72. Nc1 {[%clk
0:00:11.6]} 72... Kc3 {[%clk 0:00:05.7]} 73. Ne2+ {[%clk 0:00:11.9]} 73... Kd2
{[%clk 0:00:06.1]} 74. Nc1 {[%clk 0:00:12.3]} 74... Kd1 {[%clk 0:00:05.8]} 75.
Nb3 {[%clk 0:00:12.5]} 75... Ke2 {[%clk 0:00:05.6]} 76. Nc1+ {[%clk 0:00:12.8]}
76... Kd2 {[%clk 0:00:05.9]} 77. Nb3+ {[%clk 0:00:13.5]} 77... Kc3 {[%clk
0:00:06.2]} 78. Nc1 {[%clk 0:00:14.2]} 78... Nd3 {[%clk 0:00:06.5]} 79. Nxa2+
{[%clk 0:00:13.2]} 79... Kd2 {[%clk 0:00:06.9]} 80. Nc1 {[%clk 0:00:09.6]} 80...
Nxc1 {[%clk 0:00:06.7]} 81. Kb2 {[%clk 0:00:09.6]} 81... Nd3+ {[%clk 0:00:07.2]}
0-1